fUSD/lending_fUSD_20250211
["ID","MTS","AMOUNT","RATE_DAILY","PERIOD"]
[352706738,1739263832500,-282.28444792,0.00010316,2]
[352706739,1739263832510,-150.0,0.00010345,2]
[352706740,1739263832520,-150.0,0.00010394,2]
[352706741,1739263832529,-16.95963277,0.000104,3]
[352706742,1739263832555,-583.04036723,0.000104,3]
[352706743,1739263832564,-150.0,0.00010442,2]
[352706744,1739263832574,-677.09,0.00010466,2]
[352706745,1739263832583,-150.99,0.00010475,2]
[352706746,1739263832594,-999.99,0.00010475,2]
[352706747,1739263832604,-299.99,0.00010475,2]
[352706748,1739263832613,-6956.59205085,0.00010475,2]
[352706749,1739263832625,-6890.5634584,0.00010475,2]
[352706750,1739263832658,-476.47053834,0.00010475,2]
[352706751,1739263832677,-987.78,0.00010475,2]
[352706752,1739263832696,-254.99062844,0.00010475,2]
[352706753,1739263837924,-534.82997,0.00010475,2]
[352706754,1739263838031,-7707.78335397,0.00010475,2]
[352706755,1739263838040,-150.99,0.00010475,2]
[352706756,1739263838049,-577.34,0.00010475,2]
[352706757,1739263838058,-150.0,0.00010491,2]
[352706758,1739263838067,-1000.0,0.000105,3]
[352706759,1739263838076,-150.0,0.00010539,2]
[352706760,1739263838086,-1012.25,0.00010583,2]
[352706761,1739263838095,-150.0,0.00010588,2]
[352706762,1739263838104,-2335.36631,0.0001059,2]
[352706763,1739263838113,-499.3,0.00010599,2]
[352706764,1739263838122,-495.87,0.00010599,2]
[352706765,1739263838131,-501.22,0.00010599,2]
[352706766,1739263838140,-506.02,0.00010599,2]
[352706767,1739263838151,-498.16,0.000106,2]
[352706768,1739263838162,-509.29,0.000106,2]
[352706769,1739263838172,-490.3,0.000106,2]
[352706770,1739263838181,-497.67,0.000106,2]
[352706771,1739263838191,-492.72,0.000106,2]
[352706772,1739263838199,-505.31,0.000106,2]
[352706773,1739263838209,-498.95,0.000106,2]
[352706774,1739263838218,-541.14216102,0.000106,2]
[352706775,1739263838228,-162.96716139,0.000106,2]
[352706776,1739263838240,-162.35028127,0.000106,2]
[352706777,1739263838250,-1300.0,0.000106,3]
[352706778,1739263838260,-243.51652288,0.000106,2]
[352706779,1739263838269,-303.09891372,0.000106,2]
[352706780,1739263838279,-507.19,0.00010617,2]
[352706781,1739263838288,-501.31,0.00010633,2]
[352706782,1739263838297,-150.0,0.00010636,2]
[352706783,1739263838306,-502.33,0.00010662,2]
[352706784,1739263838315,-1059.728,0.00010662,2]
[352706785,1739263838325,-200.00000001,0.00010685,2]
[352706786,1739263838334,-96254.12007027,0.0001069,2]
[352706787,1739263838343,-500.0,0.00010699,2]
[352706788,1739263838355,-1908.36619097,0.00010699,3]
[352706789,1739263838365,-714.0,0.000107,2]
[352706790,1739263838374,-490.92,0.000107,2]
[352706791,1739263838383,-47822.08854654,0.000107,2]
[352706792,1739263838395,-260123.67618699,0.000107,2]
[352706793,1739263838407,-10517.40568761,0.000107,2]
[352706795,1739263840291,-9389.05031852,0.000107,2]
[352706796,1739263840307,-269.6215705,0.000107,2]
[352706797,1739263840335,-670.28,0.000107,2]
[352706798,1739263840346,-1376.98482196,0.000107,2]
[352706799,1739263843252,-8154.9,0.000107,2]
[352706801,1739263843359,-3620574.82381672,0.000107,2]
[352706802,1739263843412,-962.05,0.000107,2]
[352706803,1739263843424,-746.04992845,0.000107,2]
[352706804,1739263843465,-1129.84499985,0.000107,2]
[352706805,1739263843573,-30697.49999987,0.000107,2]
[352706828,1739263845932,-110761.87176076,0.000107,2]
[352706829,1739263845987,-1578.74038654,0.000107,2]
[352706830,1739263846243,-335409.21789373,0.000107,2]
[352706831,1739263846255,-1005.239788,0.000107,2]
[352706832,1739263846266,-2460.125,0.000107,2]
[352706837,1739264258376,657.11,8.219e-05,2]
[352706841,1739265032286,-603.2,9.811e-05,2]
[352706842,1739265032295,-150.0,9.817e-05,2]
[352706843,1739265032304,-300.0,9.823e-05,2]
[352706844,1739265032313,-167.51,9.827e-05,2]
[352706845,1739265032325,-150.0,9.827e-05,2]
[352706846,1739265032334,-150.0,9.838e-05,2]
[352706847,1739265032345,-645.69,9.849e-05,2]
[352706848,1739265032355,-250.0,9.849e-05,2]
[352706849,1739265032364,-201.98,9.911e-05,2]
[352706850,1739265032373,-1000.0,9.911e-05,2]
[352706851,1739265032383,-386.52,9.921e-05,2]
[352706852,1739265032392,-173.56,0.00010137,2]
[352706853,1739265032401,-657.11,0.00010471,2]
[352706854,1739265032411,-300.0,0.00010609,2]
[352706855,1739265032420,-300.0,0.00010699,2]
[352706856,1739265032429,-495.29,0.00010699,2]
[352706857,1739265032438,-501.33,0.00010699,2]
[352706858,1739265032447,-502.09,0.00010699,2]
[352706859,1739265032456,-505.8,0.00010699,2]
[352706860,1739265032465,-508.86,0.000107,2]
[352706861,1739265032474,-174.132,0.000107,2]
[352706862,1739265032484,-73932.92799424,0.000107,2]
[352706891,1739265037999,-253.88938542,0.000106,2]
[352706895,1739265038101,-57.25109813,0.000106,2]
[352706897,1739265038111,-54818.27474755,0.000107,2]
[352706900,1739265038122,-9564.14507493,0.000107,2]
[352706903,1739265038153,-3378.57078325,0.000107,2]
[352706904,1739265038208,-124544.69654093,0.000107,2]
[352706905,1739265038219,-7766.15755793,0.000107,2]
[352706906,1739265040025,-705.20017422,0.000107,2]
[352706907,1739265040036,-394.04068009,0.000107,2]
[352706908,1739265040236,-1578.51351905,0.000107,2]
[352706909,1739265040287,-573.619998,0.000107,2]
[352706910,1739265040677,-789.72963965,0.000107,2]
[352706911,1739265040690,-461.584,0.000107,2]
[352706920,1739265043266,-2127.5000002,0.000107,2]
[352706921,1739265043319,-209114.59088476,0.000107,2]
[352706922,1739265043330,-1080.38732217,0.000107,2]
[352706923,1739265043340,-290.15605878,0.000107,2]
[352706924,1739265043349,-196.44048023,0.000107,2]
[352706925,1739265043362,-200.0,0.000107,2]
[352706926,1739265043372,-200.0,0.000107,2]
[352706927,1739265043382,-200.0,0.000107,2]
[352706928,1739265043392,-1428.94,0.000107,2]
[352706929,1739265043401,-2612.80526,0.000107,2]
[352706930,1739265043411,-91233.65371288,0.000107,2]
[352706931,1739265043421,-498.58,0.000107,2]
[352706932,1739265043431,-150.0,0.00010792,2]
[352706933,1739265043440,-319924.49828977,0.000108,2]
[352706934,1739265043450,-200.0,0.000108,3]
[352706935,1739265043459,-200.0,0.000108,3]
[352706936,1739265043468,-150.0,0.000108,2]
[352706937,1739265043478,-150.0,0.000108,2]
[352706938,1739265043487,-535.02032688,0.000108,2]
[352706939,1739265043498,-162.96716139,0.000108,2]
[352706940,1739265043508,-150.0,0.0001087,2]
[352706941,1739265043517,-150.0,0.00010886,2]
[352706942,1739265043527,-173.33,0.0001089,2]
[352706943,1739265043536,-650.0,0.00010895,2]
[352706944,1739265043545,-151.0,0.00010895,2]
[352706945,1739265043555,-151.0,0.00010895,2]
[352706946,1739265043564,-151.0,0.00010895,2]
[352706947,1739265043574,-151.0,0.00010895,2]
[352706948,1739265043583,-151.0,0.00010895,2]
[352706949,1739265043593,-151.0,0.00010895,2]
[352706950,1739265043603,-161.18732624,0.00010895,2]
[352706951,1739265043616,-621144.13723136,0.00010895,2]
[352706952,1739265043625,-159.81199429,0.000109,2]
[352706953,1739265043634,-159.81199429,0.000109,2]
[352706954,1739265043644,-159.81199429,0.000109,2]
[352706955,1739265043655,-150.0,0.00010902,2]
[352706956,1739265043665,-150.0,0.00010903,2]
[352706957,1739265043674,-150.0,0.00010906,2]
[352706958,1739265043685,-150.0,0.00010906,2]
[352706959,1739265043694,-150.0,0.00010909,2]
[352706960,1739265043708,-150.0,0.00010911,2]
[352706961,1739265043724,-1000.0,0.00010916,2]
[352706962,1739265043738,-150.0,0.00010916,2]
[352706963,1739265043749,-150.0,0.0001092,2]
[352706964,1739265043762,-150.0,0.00010925,2]
[352706965,1739265043776,-150.0,0.00010925,2]
[352706966,1739265043788,-150.0,0.00010935,2]
[352706967,1739265043803,-150.0,0.00010935,2]
[352706968,1739265043818,-150.0,0.00010941,2]
[352706969,1739265043831,-244.11994347,0.00010945,2]
[352706970,1739265043844,-150.0,0.00010948,2]
[352706971,1739265043856,-2413.1495426,0.00010948,2]
[352706972,1739265043870,-9300.6777291,0.00010949,2]
[352706973,1739265043883,-150.0,0.0001095,2]
[352706974,1739265043896,-150.0,0.0001095,2]
[352706975,1739265043910,-150.0,0.00010953,2]
[352706976,1739265043925,-150.0,0.00010956,2]
[352706977,1739265043938,-150.0,0.00010957,2]
[352706978,1739265043951,-500.0,0.00010958,2]
[352706979,1739265043964,-182.551668,0.00010958,2]
[352706980,1739265043978,-500.0,0.00010958,2]
[352706981,1739265043989,-620.01506423,0.00010958,2]
[352706982,1739265044003,-500.0,0.00010958,2]
[352706983,1739265044016,-632.87156207,0.00010958,2]
[352706984,1739265044029,-257.06061416,0.00010958,2]
[352706985,1739265044042,-500.50916,0.00010958,2]
[352706986,1739265044054,-500.0,0.00010958,2]
[352706987,1739265044066,-500.0,0.00010958,2]
[352706988,1739265044076,-500.0,0.00010958,2]
[352706989,1739265044087,-500.0,0.00010958,2]
[352706990,1739265044099,-500.0,0.00010958,2]
[352706991,1739265044116,-500.0,0.00010958,2]
[352706992,1739265044127,-500.41197142,0.00010958,2]
[352706993,1739265044137,-180.988128,0.00010958,2]
[352706994,1739265044148,-501.00961371,0.00010958,2]
[352706995,1739265044161,-500.0,0.00010958,2]
[352706996,1739265044175,-500.0,0.00010958,2]
[352706997,1739265044186,-500.0,0.00010958,2]
[352706998,1739265044197,-153.775169,0.00010958,2]
[352706999,1739265044208,-500.0,0.00010958,2]
[352707000,1739265044220,-500.0,0.00010958,2]
[352707001,1739265044235,-500.0,0.00010958,2]
[352707002,1739265044247,-500.0,0.00010958,2]
[352707003,1739265044260,-500.0,0.00010958,2]
[352707004,1739265044272,-500.0,0.00010958,2]
[352707005,1739265044284,-530.51140734,0.00010958,2]
[352707006,1739265044296,-500.0,0.00010958,2]
[352707007,1739265044307,-454.46029491,0.00010958,2]
[352707008,1739265044319,-500.0,0.00010958,2]
[352707009,1739265044330,-500.0,0.00010958,2]
[352707010,1739265044342,-300.0,0.00010958,2]
[352707011,1739265044354,-503.71760818,0.00010958,2]
[352707012,1739265044368,-500.0,0.00010958,2]
[352707013,1739265044380,-500.0,0.00010958,2]
[352707014,1739265044392,-500.0,0.00010958,2]
[352707015,1739265044404,-500.0,0.00010958,2]
[352707016,1739265044416,-500.0,0.00010958,2]
[352707017,1739265044428,-500.0,0.00010958,2]
[352707018,1739265044439,-500.0,0.00010958,2]
[352707019,1739265044450,-500.0,0.00010958,2]
[352707020,1739265044462,-501.01270654,0.00010958,2]
[352707021,1739265044473,-500.0,0.00010958,2]
[352707022,1739265044485,-500.0,0.00010958,2]
[352707023,1739265044497,-291.70620789,0.00010958,2]
[352707024,1739265044508,-500.0,0.00010958,2]
[352707025,1739265044519,-624.00046404,0.00010958,2]
[352707026,1739265044531,-500.0,0.00010958,2]
[352707027,1739265044543,-500.0,0.00010958,2]
[352707028,1739265044554,-500.0,0.00010958,2]
[352707029,1739265044565,-500.0,0.00010958,2]
[352707030,1739265044576,-500.0,0.00010958,2]
[352707031,1739265044587,-500.0,0.00010958,2]
[352707032,1739265044599,-500.0,0.00010958,2]
[352707033,1739265044614,-501.45132337,0.00010958,2]
[352707034,1739265044625,-500.0,0.00010958,2]
[352707035,1739265044636,-165.74972225,0.00010958,2]
[352707036,1739265044647,-500.0,0.00010958,2]
[352707037,1739265044660,-500.0,0.00010958,2]
[352707038,1739265044671,-500.0,0.00010958,2]
[352707039,1739265044682,-500.0,0.00010958,2]
[352707040,1739265044694,-500.0,0.00010958,2]
[352707041,1739265044705,-500.0,0.00010958,2]
[352707042,1739265044716,-500.0,0.00010958,2]
[352707043,1739265044728,-500.0,0.00010958,2]
[352707044,1739265044739,-504.06379656,0.00010958,2]
[352707045,1739265044753,-510.187878,0.00010958,2]
[352707046,1739265044767,-500.0,0.00010958,2]
[352707047,1739265044780,-500.0,0.00010958,2]
[352707048,1739265044795,-500.0,0.00010958,2]
[352707049,1739265044810,-500.0,0.00010958,2]
[352707050,1739265044821,-504.75370137,0.00010958,2]
[352707051,1739265044832,-500.0,0.00010958,2]
[352707052,1739265044844,-500.0,0.00010958,2]
[352707053,1739265044855,-500.0,0.00010958,2]
[352707054,1739265044867,-500.0,0.00010958,2]
[352707055,1739265044878,-500.0,0.00010958,2]
[352707056,1739265044889,-501.99027188,0.00010958,2]
[352707057,1739265044901,-511.53581266,0.00010958,2]
[352707058,1739265044913,-500.0,0.00010958,2]
[352707059,1739265044924,-500.0,0.00010958,2]
[352707060,1739265044935,-500.0,0.00010958,2]
[352707061,1739265044947,-500.0,0.00010958,2]
[352707062,1739265044959,-500.0,0.00010958,2]
[352707063,1739265044971,-500.0,0.00010958,2]
[352707064,1739265044984,-500.0,0.00010958,2]
[352707065,1739265044996,-500.0,0.00010958,2]
[352707066,1739265045008,-500.0,0.00010958,2]
[352707067,1739265045020,-500.0,0.00010958,2]
[352707068,1739265045032,-500.0,0.00010958,2]
[352707069,1739265045043,-500.0,0.00010958,2]
[352707070,1739265045055,-500.0,0.00010958,2]
[352707071,1739265045067,-500.0,0.00010958,2]
[352707072,1739265045078,-500.0,0.00010958,2]
[352707073,1739265045089,-500.0,0.00010958,2]
[352707074,1739265045101,-500.0,0.00010958,2]
[352707075,1739265045114,-500.0,0.00010958,2]
[352707076,1739265045126,-196.939912,0.00010958,2]
[352707077,1739265045139,-500.0,0.00010958,2]
[352707078,1739265045151,-503.00795365,0.00010958,2]
[352707079,1739265045163,-500.0,0.00010958,2]
[352707080,1739265045176,-500.0,0.00010958,2]
[352707081,1739265045189,-500.0,0.00010958,2]
[352707082,1739265045201,-500.0,0.00010958,2]
[352707083,1739265045213,-500.0,0.00010958,2]
[352707084,1739265045225,-500.0,0.00010958,2]
[352707085,1739265045237,-500.0,0.00010958,2]
[352707086,1739265045249,-500.0,0.00010958,2]
[352707087,1739265045261,-500.0,0.00010958,2]
[352707088,1739265045272,-500.0,0.00010958,2]
[352707089,1739265045286,-501.42351033,0.00010958,2]
[352707090,1739265045299,-500.0,0.00010958,2]
[352707091,1739265045312,-500.0,0.00010958,2]
[352707092,1739265045326,-500.0,0.00010958,2]
[352707093,1739265045339,-500.0,0.00010958,2]
[352707094,1739265045351,-392.04457854,0.00010958,2]
[352707095,1739265045365,-512.86778275,0.00010958,2]
[352707096,1739265045378,-500.0,0.00010958,2]
[352707097,1739265045391,-500.0,0.00010958,2]
[352707098,1739265045404,-500.0,0.00010958,2]
[352707099,1739265045418,-500.0,0.00010958,2]
[352707100,1739265045430,-500.0,0.00010958,2]
[352707101,1739265045443,-507.93358603,0.00010958,2]
[352707102,1739265045456,-516.49731141,0.00010958,2]
[352707103,1739265045468,-500.0,0.00010958,2]
[352707104,1739265045480,-500.0,0.00010958,2]
[352707105,1739265045492,-251.917121,0.00010958,2]
[352707106,1739265045504,-500.0,0.00010958,2]
[352707107,1739265045516,-500.0,0.00010958,2]
[352707108,1739265045528,-500.0,0.00010958,2]
[352707109,1739265045540,-500.0,0.00010958,2]
[352707110,1739265045552,-370.07388685,0.00010958,2]
[352707111,1739265045564,-500.0,0.00010958,2]
[352707112,1739265045576,-500.0,0.00010958,2]
[352707113,1739265045587,-500.0,0.00010958,2]
[352707114,1739265045600,-500.0,0.00010958,2]
[352707115,1739265045617,-500.0,0.00010958,2]
[352707116,1739265045630,-500.0,0.00010958,2]
[352707117,1739265045643,-500.0,0.00010958,2]
[352707118,1739265045654,-500.0,0.00010958,2]
[352707119,1739265045666,-500.0,0.00010958,2]
[352707120,1739265045677,-500.0,0.00010958,2]
[352707121,1739265045691,-500.0,0.00010958,2]
[352707122,1739265045703,-500.0,0.00010958,2]
[352707123,1739265045715,-500.0,0.00010958,2]
[352707124,1739265045726,-500.0,0.00010958,2]
[352707125,1739265045738,-500.0,0.00010958,2]
[352707126,1739265045749,-500.0,0.00010958,2]
[352707127,1739265045760,-500.0,0.00010958,2]
[352707128,1739265045771,-500.0,0.00010958,2]
[352707129,1739265045783,-502.57856063,0.00010958,2]
[352707132,1739265045795,-500.0,0.00010958,2]
[352707134,1739265045807,-500.0,0.00010958,2]
[352707136,1739265045818,-500.0,0.00010958,2]
[352707137,1739265045827,-500.0,0.00010958,2]
[352707138,1739265045837,-500.0,0.00010958,2]
[352707139,1739265045848,-500.0,0.00010958,2]
[352707140,1739265045858,-500.0,0.00010958,2]
[352707141,1739265046186,-500.0,0.00010958,2]
[352707142,1739265046204,-500.0,0.00010958,2]
[352707143,1739265046214,-500.0,0.00010958,2]
[352707144,1739265046223,-500.0,0.00010958,2]
[352707145,1739265046233,-500.0,0.00010958,2]
[352707146,1739265046243,-500.0,0.00010958,2]
[352707147,1739265046252,-500.0,0.00010958,2]
[352707148,1739265046262,-500.0,0.00010958,2]
[352707149,1739265046271,-500.0,0.00010958,2]
[352707150,1739265046281,-500.0,0.00010958,2]
[352707151,1739265046291,-500.0,0.00010958,2]
[352707152,1739265046300,-500.0,0.00010958,2]
[352707153,1739265046310,-500.0,0.00010958,2]
[352707154,1739265046319,-501.87177565,0.00010958,2]
[352707155,1739265046328,-500.0,0.00010958,2]
[352707156,1739265046338,-500.0,0.00010958,2]
[352707157,1739265046347,-500.0,0.00010958,2]
[352707158,1739265046358,-500.0,0.00010958,2]
[352707159,1739265046367,-500.0,0.00010958,2]
[352707160,1739265046376,-500.0,0.00010958,2]
[352707161,1739265046385,-500.0,0.00010958,2]
[352707162,1739265046395,-500.0,0.00010958,2]
[352707163,1739265046404,-500.0,0.00010958,7]
[352707164,1739265046413,-169.937897,0.00010958,2]
[352707165,1739265046422,-500.0,0.00010958,2]
[352707166,1739265046431,-500.0,0.00010958,2]
[352707167,1739265046441,-500.0,0.00010958,2]
[352707168,1739265046450,-300.0,0.00010958,2]
[352707169,1739265046460,-514.7,0.00010958,2]
[352707170,1739265046470,-514.7,0.00010958,2]
[352707172,1739265046480,-500.0,0.00010958,2]
[352707173,1739265046489,-514.7,0.00010958,2]
[352707174,1739265046499,-514.7,0.00010958,2]
[352707175,1739265046508,-514.7,0.00010958,2]
[352707176,1739265046518,-514.7,0.00010958,2]
[352707177,1739265046527,-514.7,0.00010958,2]
[352707178,1739265046537,-514.7,0.00010958,2]
[352707179,1739265046547,-514.7,0.00010958,2]
[352707180,1739265046556,-514.7,0.00010958,2]
[352707181,1739265046566,-514.7,0.00010958,2]
[352707182,1739265046575,-514.7,0.00010958,2]
[352707183,1739265046585,-514.7,0.00010958,2]
[352707184,1739265046594,-514.7,0.00010958,2]
[352707185,1739265046604,-514.7,0.00010958,2]
[352707186,1739265046620,-500.0,0.00010958,2]
[352707187,1739265046629,-514.7,0.00010958,2]
[352707188,1739265046638,-514.7,0.00010958,2]
[352707189,1739265046647,-514.7,0.00010958,2]
[352707190,1739265046658,-514.7,0.00010958,2]
[352707191,1739265046667,-514.7,0.00010958,2]
[352707192,1739265046676,-514.7,0.00010958,2]
[352707193,1739265046685,-514.7,0.00010958,2]
[352707194,1739265046695,-514.7,0.00010958,2]
[352707195,1739265046705,-514.85,0.00010958,2]
[352707196,1739265046714,-500.0,0.00010958,2]
[352707197,1739265046724,-500.0,0.00010958,2]
[352707198,1739265046735,-501.05419803,0.00010958,2]
[352707199,1739265046745,-500.0,0.00010958,2]
[352707200,1739265046754,-500.0,0.00010958,2]
[352707201,1739265046764,-503.69397327,0.00010958,2]
[352707202,1739265046775,-500.0,0.00010958,2]
[352707203,1739265046785,-500.0,0.00010958,2]
[352707204,1739265046794,-500.0,0.00010958,2]
[352707205,1739265046804,-500.0,0.00010958,2]
[352707206,1739265046815,-500.0,0.00010958,2]
[352707207,1739265046824,-500.0,0.00010958,2]
[352707208,1739265046834,-500.0,0.00010958,2]
[352707209,1739265046844,-500.0,0.00010958,2]
[352707210,1739265046854,-500.0,0.00010958,2]
[352707211,1739265046864,-500.0,0.00010958,2]
[352707212,1739265046874,-500.0,0.00010958,2]
[352707213,1739265046883,-500.0,0.00010958,2]
[352707214,1739265046893,-500.0,0.00010958,2]
[352707215,1739265046903,-500.0,0.00010958,2]
[352707216,1739265046913,-500.0,0.00010958,2]
[352707217,1739265046923,-500.0,0.00010958,2]
[352707218,1739265046933,-500.0,0.00010958,2]
[352707219,1739265046943,-500.0,0.00010958,2]
[352707220,1739265046952,-500.0,0.00010958,2]
[352707221,1739265046961,-500.0,0.00010958,2]
[352707222,1739265046971,-500.0,0.00010958,2]
[352707223,1739265046980,-498.51256262,0.00010958,2]
[352707224,1739265046989,-199.77530916,0.00010958,2]
[352707225,1739265046998,-500.0,0.00010958,2]
[352707226,1739265047008,-500.0,0.00010958,2]
[352707227,1739265047018,-500.0,0.00010958,2]
[352707228,1739265047027,-500.47526069,0.00010958,2]
[352707229,1739265047037,-500.0,0.00010958,2]
[352707230,1739265047046,-867.33,0.00010958,2]
[352707231,1739265047055,-502.74491306,0.00010958,2]
[352707232,1739265047065,-323.67160192,0.00010958,2]
[352707233,1739265047074,-500.0,0.00010958,2]
[352707234,1739265047083,-500.0,0.00010958,2]
[352707235,1739265047092,-500.0,0.00010958,2]
[352707236,1739265047101,-504.12468518,0.00010958,2]
[352707237,1739265047112,-500.0,0.00010958,2]
[352707238,1739265047122,-500.0,0.00010958,2]
[352707239,1739265047131,-595.98482865,0.00010958,2]
[352707240,1739265047140,-156.695849,0.00010958,2]
[352707241,1739265047149,-500.0,0.00010958,2]
[352707242,1739265047159,-500.0,0.00010958,2]
[352707243,1739265047168,-500.0,0.00010958,2]
[352707244,1739265047178,-502.74116395,0.00010958,2]
[352707245,1739265047187,-500.0,0.00010958,2]
[352707246,1739265047196,-735.328417,0.00010958,2]
[352707247,1739265047205,-500.0,0.00010958,2]
[352707248,1739265047214,-500.0,0.00010958,2]
[352707249,1739265047223,-500.0,0.00010958,2]
[352707250,1739265047233,-235.42179853,0.00010958,2]
[352707251,1739265047242,-500.0,0.00010958,2]
[352707252,1739265047252,-500.0,0.00010958,2]
[352707253,1739265047261,-500.0,0.00010958,2]
[352707254,1739265047271,-500.0,0.00010958,2]
[352707255,1739265047281,-500.0,0.00010958,2]
[352707256,1739265047291,-500.0,0.00010958,2]
[352707257,1739265047301,-500.0,0.00010958,2]
[352707258,1739265047310,-500.0,0.00010958,2]
[352707259,1739265047321,-500.0,0.00010958,2]
[352707260,1739265047331,-500.0,0.00010958,2]
[352707261,1739265047340,-500.0,0.00010958,2]
[352707262,1739265047350,-501.64952675,0.00010958,2]
[352707263,1739265047361,-500.0,0.00010958,2]
[352707264,1739265047370,-500.0,0.00010958,2]
[352707265,1739265047380,-500.72357396,0.00010958,2]
[352707266,1739265047390,-579.23,0.00010958,2]
[352707267,1739265047400,-500.0,0.00010958,2]
[352707268,1739265047410,-192.39540688,0.00010958,2]
[352707269,1739265047419,-500.0,0.00010958,2]
[352707270,1739265047429,-500.0,0.00010958,2]
[352707271,1739265047438,-500.0,0.00010958,2]
[352707272,1739265047447,-500.0,0.00010958,2]
[352707273,1739265047457,-158.58119736,0.00010958,2]
[352707274,1739265047467,-192.20762572,0.00010958,2]
[352707275,1739265047477,-500.0,0.00010958,2]
[352707276,1739265047487,-500.0,0.00010958,2]
[352707277,1739265047496,-794.21,0.00010958,2]
[352707278,1739265047506,-500.0,0.00010958,2]
[352707279,1739265047515,-680.44,0.00010958,2]
[352707280,1739265047525,-500.0,0.00010958,2]
[352707281,1739265047535,-500.0,0.00010958,2]
[352707282,1739265047545,-500.0,0.00010958,2]
[352707283,1739265047555,-500.0,0.00010958,2]
[352707284,1739265047565,-500.0,0.00010958,2]
[352707285,1739265047575,-500.0,0.00010958,2]
[352707286,1739265047586,-748.34,0.00010958,2]
[352707287,1739265047597,-500.0,0.00010958,2]
[352707288,1739265047613,-500.0,0.00010958,2]
[352707289,1739265047625,-500.0,0.00010958,2]
[352707290,1739265047635,-500.0,0.00010958,2]
[352707291,1739265047646,-500.0,0.00010958,2]
[352707292,1739265047656,-1043.94,0.00010958,2]
[352707293,1739265047667,-501.15525487,0.00010958,2]
[352707294,1739265047676,-500.0,0.00010958,2]
[352707295,1739265047686,-196.939921,0.00010958,2]
[352707296,1739265047696,-500.0,0.00010958,2]
[352707297,1739265047706,-500.0,0.00010958,2]
[352707298,1739265047718,-597.8359,0.00010958,2]
[352707299,1739265047729,-500.0,0.00010958,2]
[352707300,1739265047740,-500.0,0.00010958,2]
[352707301,1739265047750,-500.0,0.00010958,2]
[352707302,1739265047760,-500.0,0.00010958,2]
[352707303,1739265047771,-500.0,0.00010958,2]
[352707304,1739265047781,-500.0,0.00010958,2]
[352707305,1739265047791,-500.0,0.00010958,2]
[352707306,1739265047801,-713.28,0.00010958,2]
[352707307,1739265047811,-500.0,0.00010958,2]
[352707308,1739265047821,-500.0,0.00010958,2]
[352707309,1739265047832,-500.0,0.00010958,2]
[352707310,1739265047842,-500.0,0.00010958,2]
[352707311,1739265047852,-273.96245617,0.00010958,2]
[352707312,1739265047864,-500.0,0.00010958,2]
[352707313,1739265047875,-1052.33,0.00010958,2]
[352707314,1739265047886,-503.12081949,0.00010958,2]
[352707315,1739265047897,-500.0,0.00010958,2]
[352707316,1739265047907,-500.0,0.00010958,2]
[352707317,1739265047918,-317.2277141,0.00010958,2]